Cogmind - Beta 10.2 @@@ ROGUE MODE // 2021.05.25 @ 00:18:13 Player: Vagkalis Result: Destroyed self with Mini Grenade Launcher Performance ------------- Evolutions (1) 500 Regions Visited (3) 600 Robots Destroyed (78) 390 Value Destroyed (1779) 1779 Prototype IDs (5) 100 Alien Tech Used (0) 0 Bonus (221) 221 TOTAL SCORE: 3590 Bonus ------- High Alert Combat Kills 169 Follower Combat Kills 52 Cogmind --------- Core Integrity 0/400 Matter 289/300 Energy 254/280 System Corruption 1% Temperature Cool (0) Movement Treading (160) Location -9/Storage Parts ------- > --- POWER (1) -------- Cooled Ion Engine > --- PROPULSION (4) --- Light Treads Light Treads Light Treads Light Treads > --- UTILITY (2) ------ Large Storage Unit Large Storage Unit > --- WEAPON (2) ------- EMP Blaster Mini Grenade Launcher > --- INVENTORY (16) --- Improved Ion Engine Cooling System Small Matter Pod (50) Salvage Targeting Computer Targeting Computer Improved Targeting Computer Improved Targeting Computer Utility Shielding Medium Armor Plating Beam Rifle Advanced Beam Cannon Advanced Beam Cannon Advanced Beam Cannon Improved Assault Rifle EMP Blaster Grenade Launcher Peak State ------------ > --- POWER ------------ Cooled Ion Engine > --- PROPULSION ------- Light Treads Light Treads Light Treads > --- UTILITY ---------- Large Storage Unit Large Storage Unit > --- WEAPON ----------- Advanced Beam Cannon Ion Burst Cannon > --- INVENTORY -------- Improved Ion Engine Cooled Ion Engine Cooling System Small Matter Pod Targeting Computer Utility Shielding Medium Armor Plating Beam Rifle Beam Rifle Advanced Beam Cannon Advanced Beam Cannon Improved Assault Rifle Grenade Launcher Mini Grenade Launcher [Rating: 19] Favorites ----------- Power Ion Engine Engine Ion Engine Propulsion Light Treads Treads Light Treads Leg Aluminum Leg Wheel Wheel Utility Large Storage Unit Storage Large Storage Unit Protection Propulsion Shielding Weapon Advanced Beam Cannon Energy Gun Small Laser Energy Cannon Advanced Beam Cannon Ballistic Gun Assault Rifle Launcher Mini Grenade Launcher Build | -11 -10 -9 -9 ------- Run | Scr Mat Mat Sto Slots Evolved 2 | . . 2 . Power . | . . . . Propulsion 2 | . . 2 . Utility . | . . . . Weapon . | . . . . Parts Attached 59 | 6 14 21 18 Power 7 | 1 2 2 2 Engine 7 | 1 2 2 2 Core . | . . . . Reactor . | . . . . Propulsion 20 | 2 5 9 4 Treads 16 | 2 4 6 4 Leg 1 | . 1 . . Wheel 3 | . . 3 . Hover . | . . . . Flight . | . . . . Utility 4 | 1 3 . . Device . | . . . . Storage 3 | 1 2 . . Processor . | . . . . Hackware . | . . . . Protection 1 | . 1 . . Artifact . | . . . . Weapon 28 | 2 4 10 12 Energy Gun 7 | 1 1 5 . Energy Cannon 6 | . 1 1 4 Ballistic Gun 11 | 1 2 4 4 Ballistic Cannon . | . . . . Launcher 4 | . . . 4 Special Weapon . | . . . . Impact Weapon . | . . . . Slashing Weapon . | . . . . Piercing Weapon . | . . . . Special Melee Weapon . | . . . . Unidentified Prototypes 5 | . . 2 3 Parts Lost 16 | . 2 8 6 Power 1 | . . 1 . Propulsion 6 | . . 2 4 Utility . | . . . . Weapon 9 | . 2 5 2 Highest Loss Streak 3 | . 1 3 2 Average Slot Usage (%) 88 | . 90 82 93 Engine 11 | . 13 10 11 Treads 26 | . 22 21 37 Leg 3 | . 5 4 . Storage 20 | . 17 22 22 Protection 2 | . 5 . . Energy Gun 5 | . 8 7 . Energy Cannon 6 | . 3 4 11 Ballistic Gun 11 | . 14 9 9 Naked Turns . | . . . . Heaviest Build 52 | 10 40 42 52 Greatest Support 80 | 40 40 80 80 Greatest Overweight (x) 12 | . 3 12 1 Average Overweight (x) . | . . 1 . Largest Inventory Capacity 16 | 6 16 16 16 Average Capacity 13 | 4 9 16 16 Most Carried 16 | 4 14 16 16 Average Carried 11 | 3 6 13 14 Final Capacity 16 | 6 16 16 16 Final Carried 16 | 2 12 16 16 Class Distribution -------------------- 61% | Mutant 38% | Scavenger-Mutant Dominant Class ---------------- Mutant | -10/Materials Scavenger-Mutant | -9/Materials Scavenger-Mutant | -9/Storage Resources | -11 -10 -9 -9 ----------- Run | Scr Mat Mat Sto Matter Collected 1136 | 244 234 354 304 Remotely . | . . . . Salvage Created 2537 | . 379 835 1323 Parts 158 | . 30 49 79 Haulers Intercepted 3 | . . 3 . Recyclers Shooed . | . . . . Parts Field Recycled . | . . . . Retrieved Matter . | . . . . Parts Self-Destructed . | . . . . Prevented . | . . . . Kills | -11 -10 -9 -9 ------- Run | Scr Mat Mat Sto Combat Hostiles Destroyed 64 | . 14 21 29 Guns 27 | . 10 16 1 Cannons 27 | . 4 4 19 AOE 10 | . . 1 9 Classes Destroyed 7 | . 3 3 1 Worker 6 | . 2 3 1 Hauler 3 | . . 3 . Recycler 3 | . . . 3 Watcher 2 | . . 1 1 Swarmer 26 | . 9 12 5 Grunt 29 | . 5 7 17 Sentry 9 | . . 2 7 Best Kill Streak 8 | . 5 8 7 Combat Bots Only 8 | . 5 8 6 Max Kills in Single Turn 7 | . 2 2 7 Gunslinging . | . . . . Exploded 6 | . . 1 6 Melee . | . . . . Uniques/NPCs Destroyed . | . . . . Combat | -11 -10 -9 -9 -------- Run | Scr Mat Mat Sto Damage Taken 2636 | . 565 1063 1008 Core 494 | . 82 298 114 Absorbed by Shields . | . . . . Core Remaining (%) 83 | 100 67 . . Volleys Fired 180 | . 44 68 68 Largest 2 | . 2 2 2 Hottest 168 | . 80 90 168 Shots Fired 331 | . 83 124 124 Gun 235 | . 66 111 58 Cannon 89 | . 17 13 59 Launcher 7 | . . . 7 Special . | . . . . Kinetic 151 | . 45 48 58 Thermal 168 | . 38 71 59 Explosive 6 | . . . 6 Electromagnetic 6 | . . 5 1 Robot Hit Streak 18 | . 11 18 11 Robot Miss Streak 4 | . 4 4 2 Penetration Max . | . . . . Secondary Targets 1 | . . 1 . Max Gunslinging Chain 1 | . . 1 . Shots Hit Robots 216 | . 54 84 78 Core Hits 108 | . 17 39 52 Critical Hits 14 | . 1 5 8 Critical Kills 5 | . . 2 3 Critical Parts Destroyed 8 | . 1 3 4 Melee Attacks . | . . . . Impact . | . . . . Slashing . | . . . . Piercing . | . . . . Sneak Attacks . | . . . . Combat Hostiles . | . . . . Follow-up Attacks . | . . . . Damage Inflicted 3798 | . 694 1129 1975 Guns 1611 | . 449 855 307 Cannons 1433 | . 245 248 940 Explosions 754 | . . 26 728 Melee . | . . . . Ramming . | . . . . Kinetic 930 | . 304 319 307 Thermal 2201 | . 390 707 1104 Explosive 547 | . . . 547 Electromagnetic 120 | . . 103 17 Impact . | . . . . Slashing . | . . . . Piercing . | . . . . Highest Corruption 1 | . 1 . 1 Average Corruption 1 | . 1 . 1 Corruption Purged . | . . . . Effects 4 | . 3 . 1 Message Errors 1 | . . . 1 Energy Discharges 1 | . 1 . . Data Loss (minor) 2 | . 2 . . Overload Shots . | . . . . Overflow Damage 2 | . . . 2 Projectiles . | . . . . Explosions 2 | . . . 2 Melee . | . . . . Knockbacks . | . . . . Impact . | . . . . Kinetic . | . . . . Secondary . | . . . . Self-Inflicted Damage 100 | . . 27 73 Shots 5 | . . 1 4 Rammed . | . . . . Targets Rammed . | . . . . Kicked . | . . . . Crushed . | . . . . Highest Temperature 360 | . 360 210 239 Average Temperature 70 | . 128 51 62 Received Heat Transfer 753 | . 162 234 357 Effects 2 | . 2 . . Energy Bleed 2 | . 2 . . Siege Activations . | . . . . Robots Corrupted . | . . . . Combat Hostiles . | . . . . Parts Fried . | . . . . Impact Corruptions . | . . . . Robots Melted . | . . . . Combat Hostiles . | . . . . Parts Melted 6 | . 2 1 3 Heat Transferred 4553 | . 843 1694 2016 Parts Sabotaged . | . . . . Parts Stolen . | . . . . Parts Stripped . | . . . . Power Chain Reactions 4 | . . 1 3 Missiles Intercepted . | . . . . Alert | -11 -10 -9 -9 ------- Run | Scr Mat Mat Sto Peak Influence 679 | . 235 348 679 Initial 146 | . . 35 146 Average 229 | . 126 184 409 Maximum Alert Level 2 | . 1 1 2 Low Security (%) 44 | 100 67 50 8 Level 1 37 | . 32 49 35 Level 2 17 | . . . 56 Level 3 . | . . . . Level 4 . | . . . . Level 5 . | . . . . High Security . | . . . . Max Security . | . . . . Squads Dispatched 12 | . 3 2 7 Investigation . | . . . . Extermination . | . . . . Reinforcement 7 | . 3 2 2 Assault 2 | . . . 2 Garrison 3 | . . . 3 Intercept . | . . . . Construction Impeded 1 | . . . 1 Haulers Reinforced . | . . . . Stealth | -11 -10 -9 -9 --------- Run | Scr Mat Mat Sto Distress Signals 7 | . 1 1 5 Communications Jammed . | . . . . Distress Signals . | . . . . Times Spotted 103 | . 27 33 43 Peak Tracking Total 8 | . 7 6 8 Tactical Retreats 9 | . 1 1 7 Traps | -11 -10 -9 -9 ------- Run | Scr Mat Mat Sto Traps Triggered 7 | . 4 1 2 Indirectly . | . . . . Trap Hack Attempts . | . . . . Triggered . | . . . . Disarmed . | . . . . Reprogrammed . | . . . . Reused . | . . . . Traps Extracted . | . . . . Installed . | . . . . Triggered . | . . . . Machines | -11 -10 -9 -9 ---------- Run | Scr Mat Mat Sto Machines Disabled 4 | . . . 4 Max in Single Turn 3 | . . . 3 Machines Sabotaged . | . . . . Garrisons Compromised . | . . . . Overloaded Fab Kills . | . . . . Fab Network Shutdowns . | . . . . Hacking | -11 -10 -9 -9 --------- Run | Scr Mat Mat Sto Machines Accessed 3 | . . . 3 Terminals 3 | . . . 3 Fabricators . | . . . . Repair Stations . | . . . . Recycling Units . | . . . . Scanalyzers . | . . . . Garrison Access . | . . . . Total Hacks 6 | . . . 6 Successful 1 | . . . 1 Failed 5 | . . . 5 Catastrophic . | . . . . Database Lockouts . | . . . . Manual . | . . . . Terminals 6 | . . . 6 Fabricators . | . . . . Repair Stations . | . . . . Recycling Units . | . . . . Scanalyzers . | . . . . Garrison Access . | . . . . Terminal Hacks 1 | . . . 1 Open Door 1 | . . . 1 Fabricator Hacks . | . . . . Repair Station Hacks . | . . . . Recycling Unit Hacks . | . . . . Scanalyzer . | . . . . Garrison Access Hacks . | . . . . Unauthorized Hacks . | . . . . Terminals . | . . . . Fabricators . | . . . . Repair Stations . | . . . . Recycling Units . | . . . . Scanalyzers . | . . . . Garrison Access . | . . . . Data Cores Recovered . | . . . . Used . | . . . . Hacking Detections 2 | . . . 2 Full Trace Events . | . . . . Feedback Events . | . . . . Feedback Blocked . | . . . . Robot Schematics Acquired . | . . . . Robots Built . | . . . . Matter . | . . . . Time . | . . . . Total Robot Build Rating . | . . . . Part Schematics Acquired . | . . . . Parts Built . | . . . . Matter . | . . . . Time . | . . . . Total Part Build Rating . | . . . . Parts Repaired . | . . . . Time . | . . . . Parts Recycled . | . . . . Recycled Matter . | . . . . Retrieved Matter . | . . . . Retrieved Components . | . . . . Parts Scanalyzed . | . . . . Part Schematics Acquired . | . . . . Parts Damaged . | . . . . Bothacking | -11 -10 -9 -9 ------------ Run | Scr Mat Mat Sto Used RIF Installer . | . . . . Robots Hacked . | . . . . Non-combat . | . . . . Combat . | . . . . Robot Hacks Applied . | . . . . Relay Couplers Released . | . . . . Robots Rewired . | . . . . Allies Hacked . | . . . . Hacks Repelled . | . . . . Allies | -11 -10 -9 -9 -------- Run | Scr Mat Mat Sto Total Allies 2 | . . . 2 Largest Group 2 | . . . 2 Highest-Rated Group 62 | . . . 62 Highest-Rated Ally 31 | . . . 31 Total Orders . | . . . . Ally Attacks 8 | . . . 8 Total Damage 166 | . . . 166 Kills 2 | . . . 2 Allies Corrupted . | . . . . Allies Melted . | . . . . Intel | -11 -10 -9 -9 ------- Run | Scr Mat Mat Sto Robot Analysis Total . | . . . . Derelict Logs Recovered . | . . . . Drone Launches . | . . . . Drone Recoveries . | . . . . Exploration | -11 -10 -9 -9 ------------- Run | Scr Mat Mat Sto Turns Passed 2681 | 62 1008 769 842 Spaces Moved 1136 | 42 472 287 335 Core 20 | 16 3 1 . Treads 1017 | 26 469 187 335 Legs 61 | . . 61 . Wheels 38 | . . 38 . Hover . | . . . . Flight . | . . . . Fastest Speed 50 | 50 100 100 160 Average Speed 164 | 118 168 168 160 Slowest Speed 650 | 160 200 650 180 Overloaded Moves . | . . . . Propulsion Burnouts . | . . . . Robots Hopped . | . . . . Cave-ins Triggered . | . . . . Exploration Rate (%) 44 | 4 87 33 54 Regions Visited 3 Branch Regions 1 Pre-discovered Areas . | . . . . Known Exits Taken . | . . . . Unknown Exits Taken 3 | 1 1 1 . Scrap Searched . | . . . . Spaces Dug . | . . . . Terrain Destroyed 52 | . . 6 46 Melee . | . . . . Projectile . | . . . . AOE 52 | . . 6 46 Terrain Rammed . | . . . . Walls Destroyed . | . . . . Machines Disabled . | . . . . Actions | -11 -10 -9 -9 --------- Run | Scr Mat Mat Sto Total 1632 | 53 604 454 521 Wait 175 | 1 46 51 77 Move 1133 | 41 471 286 335 Hop . | . . . . Pick Up 64 | 5 24 21 14 Fast Attach 3 | 3 . . . Attach 31 | 3 11 11 6 Detach . | . . . . Swap 25 | . 3 10 12 Drop 21 | . 5 7 9 Fire 180 | . 44 68 68 Melee . | . . . . Ram . | . . . . Kick . | . . . . Crush . | . . . . Escape Stasis . | . . . . Rewire . | . . . . Trap . | . . . . Miscellaneous . | . . . . Route ------- -11/Scrapyard -10/Materials (discovered 3 exits: [*Mat x2] / [*Min]) -9/Materials -9/Storage History --------- Turn | Location | Event 8 | -11/Scrapyard | Discovered new exit (range 14) 63 | -11/Scrapyard | Entered Materials 330 | -10/Materials | Build established: Mutant 418 | -10/Materials | Discovered new exit (range 11) 734 | -10/Materials | Discovered new exit (range 10) 846 | -10/Materials | Discovered new exit (range 6) 1071 | -10/Materials | Entered another Materials area 1071 | -9/Materials | Evolved 2 slots: Propulsion x2 1252 | -9/Materials | Core integrity fell below 50% 1309 | -9/Materials | Destroyed 8 combat bots 1318 | -9/Materials | Lost 3 parts (1p2w) 1696 | -9/Materials | Build established: Scavenger-Mutant 1734 | -9/Materials | Discovered new exit (range 13) 1840 | -9/Materials | Entered Storage 2040 | -9/Storage | Core integrity fell below 20% 2147 | -9/Storage | Garrison activated, responded to threat 2638 | -9/Storage | Met a pair of Derelict thieves 2682 | -9/Storage | Destroyed self with Mini Grenade Launcher Last Messages --------------- C-30 ARC bursts open, deploying its payload. G-47 Trooper unfolds itself. B-36 Bruiser unfolds itself. G-34 Mercenary unfolds itself. I-25 Savior unfolds itself. B-36 Bruiser sneak attacks. G-34 Mercenary destroyed. B-36 Bruiser destroyed. P7-YQ4(g) destroyed. ZC-9WL(g) destroyed. G-34 Mercenary destroyed. Chain reaction triggered in Cld. Ion Engine. G-34 Mercenary destroyed. G-47 Trooper destroyed. Heavy Doors breached. Chain reaction triggered in Ion Engine. K-01 Serf destroyed. G-47 Trooper destroyed. Chain reaction triggered in Ion Engine. Acquired 33 matter. Map ----- +----------------------------------------------------+ | ??????????????????????????????? | | ??????????????????????????????? | | ??????????????????????????????? | | ??????????????????????????????? | | ??????????????????????????????? | | ??????????????????????????????? | | ??????????????????????????????? | | ??????????????????????????????? | | ??????????????????????????????? | | ??????????????????????????????? | | ????????????? ??????????????? | | ????????????? #?????????????? | | ????????????? +?????????????? | | ????????????? #?????????????? | | ?????????????^ #?????????????? | | ????????????# ^ #?????????????? | | ????????????# #?????????????? | | ????????????+ #?????????????? | | ????????????# #?????????????? | | ????????????# #?????????????? | | ????????????# #?????????????? | | ????####### #??????#####??? | | ????#]] =#= #??????#! !#??? | | ????# [ = = #??????#! !#??? | | ????# = %* % #??????# #??? | | ????#=@ = !%%i #??????# !#??? | | ????# ] #=!%*i #?????## #??? | | ????#] ] #### #?????#T #??? | | ????######??# #?????## #??? | | ????????????# #????###+###??? | | ????????????# ######% #### | | ????????????# ==%!*! | | ????????????# ######! | | ????????????# #????# | | ??????????### #????# #### | | ??????????" + ############### | | ??????????#T# | | ??????????### %! | | ????????????# * | | ????????????#########+######### | | ??????????????????# % #? | | ??????????????????## #? | | ???????????????????# """ """ #? | | ???????????????????# """ """ #? | | ???????????????????# """ """ #? | | ???????????????????# """ #? | | ???????????????????# """ #? | | ???????????????????# #? | | ???????????????????#+#" "#####? | | ???????????????????# #"G"#????? | +----------------------------------------------------+ Best States ------------- Heat Dissipation 28 Energy Generation 14 Energy Capacity 280 Matter Stores 300 Matter Capacity 300 Sight Range 16 Terrain Scan Density 10 Propulsion Shielding 33 Evasion (%) 50 Recoil Reduction 4 Item Schematics ----------------- None Robot Schematics ------------------ None Fabricated ------------ Nothing Alien Tech Used ----------------- None Achievements -------------- None Challenges ------------ None Game ------ Seed MasterTransmissionAirjet Manual? 0 Play Time 00:37:33 Cumulative 50.9 hours Start 2021.05.24 @ 23:09:50 End 2021.05.25 @ 00:18:13 Sessions 1 Manual Loads 0 Difficulty Rogue Special Mode None Game No. 74 Rogue 74 Adventurer 0 Explorer 0 Win Type - Total 1 Types 1/0/0/0/0/0/0/0/0 Lore% 50 Gallery% 50 Achievement% 39 Wizard Run 0 Options --------- ASCII 0 Keyboard 0 Movement Mouse Keybinds 0 Fullscreen 1 Font 14/Dina Map View 72x54 Tactical HUD 0 Map Filters NONE Filters NONE Steam 1 RUN: 67cf62bb-0d43-48ac-aafd-8d5fb0ead0eb